bitfinex/quotes_BTCUSD_20250903
["timestamp","ask_amount","ask_price","bid_price","bid_amount"]
[1756860107266,0.52473951,111850.0,111840.0,0.49046288]
[1756860107479,0.52473951,111850.0,111840.0,0.30949599]
[1756860108102,0.52473951,111850.0,111840.0,0.30639599]
[1756860111074,0.52473951,111850.0,111840.0,0.21448]
[1756860114988,0.52473951,111850.0,111840.0,0.063]
[1756860114989,0.87066812,111850.0,111840.0,0.063]
[1756860115188,1.21066812,111850.0,111840.0,0.21448]
[1756860115437,1.23754903,111850.0,111840.0,0.21448]
[1756860116440,1.23754903,111850.0,111840.0,0.15148]
[1756860116670,0.17884288,111830.0,111820.0,0.0661]
[1756860116946,0.52648701,111830.0,111820.0,0.31163599]
[1756860117144,0.52477149,111830.0,111820.0,0.31163599]
[1756860117554,0.52491709,111830.0,111820.0,0.31163599]
[1756860117961,0.52491709,111830.0,111820.0,0.31363599]
[1756860120439,0.52491709,111830.0,111820.0,0.065]
[1756860120440,1.2109913,111830.0,111820.0,0.065]
[1756860120647,1.2109913,111830.0,111820.0,0.21648]
[1756860121266,1.23787621,111830.0,111820.0,0.21648]
[1756860121473,1.23787621,111830.0,111820.0,0.21448]
[1756860121882,1.23887621,111830.0,111820.0,0.21448]
[1756860123393,1.58595042,111830.0,111820.0,0.21448]
[1756860123595,0.17887487,111810.0,111800.0,1.06614]
[1756860123808,0.87273881,111810.0,111800.0,1.31167599]
[1756860124009,0.52494908,111810.0,111800.0,1.31167599]
[1756860124461,0.52494908,111810.0,111800.0,1.30953599]
[1756860124700,0.87102329,111810.0,111800.0,1.31053599]
[1756860124910,0.87102329,111810.0,111800.0,1.21598717]
[1756860125109,0.89791196,111810.0,111800.0,1.21698717]
[1756860125319,0.89791196,111810.0,111800.0,1.22008717]
[1756860125545,0.89791196,111810.0,111800.0,1.06860717]
[1756860125750,0.89791196,111810.0,111800.0,1.22008717]
[1756860125953,0.89791196,111810.0,111800.0,1.06550717]
[1756860126182,0.89791196,111810.0,111800.0,1.21598717]
[1756860126368,0.89791196,111810.0,111800.0,1.21498717]
[1756860126570,0.9066976,111810.0,111800.0,1.21498717]
[1756860126931,0.9066976,111810.0,111800.0,1.06350717]
[1756860127315,0.9066976,111810.0,111800.0,1.21498717]
[1756860128828,1.2466976,111810.0,111800.0,1.21502717]
[1756860128996,1.2466976,111810.0,111800.0,1.22026717]
[1756860129214,0.90062339,111810.0,111800.0,1.22026717]
[1756860129588,0.89183775,111810.0,111800.0,1.22026717]
[1756860129956,1.23891196,111810.0,111800.0,1.22026717]
[1756860130170,1.23991196,111810.0,111800.0,1.22026717]
[1756860130376,1.23791196,111810.0,111800.0,1.22026717]
[1756860130593,1.23891196,111810.0,111800.0,1.22026717]
[1756860130782,1.23991196,111810.0,111800.0,1.22026717]
[1756860131974,0.89383775,111810.0,111800.0,1.22026717]
[1756860132888,0.89283775,111810.0,111800.0,1.22026717]
[1756860133133,0.89183775,111810.0,111800.0,1.22026717]
[1756860134110,1.23791196,111810.0,111800.0,1.22026717]
[1756860134314,1.23791196,111810.0,111800.0,1.21502717]
[1756860134542,1.23791196,111810.0,111800.0,1.06350717]
[1756860134699,1.23791196,111810.0,111800.0,1.21502717]
[1756860135101,1.23791196,111810.0,111800.0,1.06350717]
[1756860135297,1.23791196,111810.0,111800.0,1.21502717]
[1756860135526,1.23791196,111810.0,111800.0,1.06350717]
[1756860135695,1.23891196,111810.0,111800.0,1.06350717]
[1756860135902,1.23891196,111810.0,111800.0,1.21502717]
[1756860136469,1.23891196,111810.0,111800.0,1.06350717]
[1756860136651,1.23891196,111810.0,111800.0,1.21502717]
[1756860136853,1.23991196,111810.0,111800.0,1.21502717]
[1756860137617,1.23991196,111810.0,111800.0,0.593493]
[1756860137618,1.49729025,111810.0,111800.0,0.593493]
[1756860137827,0.17897091,111750.0,111740.0,0.00319]
[1756860138034,0.17898693,111740.0,111730.0,0.15471]
[1756860138224,1.21892508,111740.0,111730.0,0.15471]
[1756860138472,1.58411486,111740.0,111730.0,0.15471]
[1756860138674,1.58411486,111740.0,111730.0,0.15152]
[1756860138885,0.17900295,111730.0,111720.0,0.00371535]
[1756860139090,0.87115137,111730.0,111720.0,0.00371535]
[1756860139299,0.87115137,111730.0,111720.0,0.00576535]
[1756860139478,0.54018641,111730.0,111720.0,0.00576535]
[1756860140416,0.54920458,111730.0,111720.0,0.00576535]
[1756860141003,0.54018641,111730.0,111720.0,0.00576535]
[1756860143614,0.56709529,111730.0,111720.0,0.00576535]
[1756860145326,0.92827875,111730.0,111720.0,0.00371535]
[1756860145536,0.92827875,111730.0,111720.0,0.00052535]
[1756860145714,1.26827875,111730.0,111720.0,0.00052535]
[1756860146528,1.26927875,111730.0,111720.0,0.00052535]
[1756860146766,0.90809529,111730.0,111720.0,0.00576535]
[1756860147498,0.90809529,111730.0,111720.0,0.00776535]
[1756860147648,0.90709529,111730.0,111720.0,0.00776535]
[1756860147850,0.90809529,111730.0,111720.0,0.00776535]
[1756860148050,1.26927875,111730.0,111720.0,0.00252535]
[1756860150207,1.26927875,111730.0,111720.0,0.00776535]
[1756860150414,0.90809529,111730.0,111720.0,0.00776535]
[1756860151245,0.90809529,111730.0,111720.0,0.00252535]
[1756860151546,1.26927875,111730.0,111720.0,0.00252535]
[1756860151888,1.42087875,111730.0,111720.0,0.00252535]
[1756860152309,1.44181757,111730.0,111720.0,0.00252535]
[1756860153300,1.4812142,111730.0,111720.0,0.00252535]
[1756860154484,1.3296142,111730.0,111720.0,0.00252535]
[1756860154693,1.4812142,111730.0,111720.0,0.00252535]
[1756860156046,1.12003074,111730.0,111720.0,0.00252535]
[1756860156581,1.4812142,111730.0,111720.0,0.00252535]
[1756860156755,1.12003074,111730.0,111720.0,0.00252535]
[1756860156986,1.4812142,111730.0,111720.0,0.00252535]
[1756860158786,1.57313019,111730.0,111720.0,0.00252535]
[1756860159523,1.89139766,111730.0,111720.0,0.00252535]
[1756860159731,0.519035,111710.0,111700.0,0.00049346]
[1756860159959,1.21279126,111710.0,111700.0,0.00063358]
[1756860160163,1.21279126,111710.0,111700.0,0.00270358]
[1756860160587,1.21489126,111710.0,111700.0,0.00270358]
[1756860160961,1.21489126,111710.0,111700.0,0.00870358]
[1756860161619,1.21489126,111710.0,111700.0,0.00770358]
[1756860161775,1.21489126,111710.0,111700.0,0.00270358]
[1756860161981,1.21279126,111710.0,111700.0,0.00570358]
[1756860162245,0.519035,111710.0,111700.0,0.00570358]
[1756860162412,0.86591313,111710.0,111700.0,0.00570358]
[1756860163238,0.86591313,111710.0,111700.0,0.00270358]
[1756860163859,0.86591313,111710.0,111700.0,0.00470358]
[1756860168567,0.33063265,111720.0,111700.0,0.00470358]
[1756860168816,0.52762865,111710.0,111700.0,0.00470358]
[1756860169025,0.52591313,111710.0,111700.0,0.00421012]
[1756860169621,0.52591313,111710.0,111700.0,0.00742012]
[1756860177426,0.52581596,111710.0,111700.0,0.00742012]
[1756860183758,0.52779596,111710.0,111700.0,0.00742012]
[1756860183965,0.52779596,111710.0,111700.0,0.15370012]
[1756860184391,0.52779596,111710.0,111700.0,0.15898012]
[1756860184805,0.52779596,111710.0,111700.0,0.00742012]
[1756860184984,0.52779596,111710.0,111700.0,0.15898012]
[1756860190964,0.179035,111710.0,111700.0,0.33803114]
[1756860191182,0.52753148,111710.0,111700.0,0.33803114]
[1756860191413,0.52581596,111710.0,111700.0,0.33803114]
[1756860191625,0.52779596,111710.0,111700.0,0.15370012]
[1756860195891,0.53026596,111710.0,111700.0,0.15370012]
[1756860196297,0.52779596,111710.0,111700.0,0.15370012]
[1756860196515,0.52779596,111710.0,111700.0,0.15579012]
[1756860196726,0.52779596,111710.0,111700.0,0.15897012]
[1756860197120,0.52879596,111710.0,111700.0,0.15697012]
[1756860197332,0.52879596,111710.0,111700.0,0.15797012]
[1756860197733,0.52879596,111710.0,111700.0,0.15588012]
[1756860198087,0.52879596,111710.0,111700.0,0.15270012]
[1756860198434,0.53126596,111710.0,111700.0,0.15270012]
[1756860198785,0.52879596,111710.0,111700.0,0.15270012]
[1756860200012,0.53126596,111710.0,111700.0,0.00114012]
[1756860200242,0.53126596,111710.0,111700.0,0.15270012]
[1756860200705,1.33090173,111710.0,111700.0,0.00114012]
[1756860200909,1.35781945,111710.0,111700.0,0.00114012]
[1756860201388,1.16159849,111710.0,111700.0,0.00114012]
[1756860201616,1.16459849,111710.0,111700.0,0.00114012]
[1756860201826,1.51137945,111710.0,111700.0,0.00014012]
[1756860202028,1.16459849,111710.0,111700.0,0.00014012]
[1756860202975,1.16759849,111710.0,111700.0,0.00014012]
[1756860205226,1.51437945,111710.0,111700.0,0.00014012]
[1756860205794,1.36281945,111710.0,111700.0,0.00014012]
[1756860206019,1.16759849,111710.0,111700.0,0.00014012]
[1756860206773,1.16159849,111710.0,111700.0,0.00014012]
[1756860207019,1.16459849,111710.0,111700.0,0.00014012]
[1756860207218,1.01303849,111710.0,111700.0,0.00014012]
[1756860207471,1.16459849,111710.0,111700.0,0.00014012]
[1756860208607,1.01303849,111710.0,111700.0,0.00014012]
[1756860208817,1.16459849,111710.0,111700.0,0.00014012]
[1756860211750,1.01056849,111710.0,111700.0,0.00014012]
[1756860211960,1.16212849,111710.0,111700.0,0.00014012]
[1756860212316,1.51137945,111710.0,111700.0,0.00014012]
[1756860212928,0.51906706,111690.0,111680.0,0.0004]
[1756860213130,1.36418898,111690.0,111680.0,0.00086623]
[1756860213331,1.36863898,111690.0,111680.0,0.00086623]
[1756860213546,1.39555945,111690.0,111680.0,0.00086623]
[1756860214172,1.39555945,111690.0,111680.0,0.00186623]
[1756860214554,1.39555945,111690.0,111680.0,0.00086623]
[1756860214748,0.54796753,111690.0,111680.0,0.00086623]
[1756860214955,1.39308945,111690.0,111680.0,0.00086623]
[1756860216141,1.39508945,111690.0,111680.0,0.00086623]
[1756860216348,1.39755945,111690.0,111680.0,0.00086623]
[1756860216549,1.39508945,111690.0,111680.0,0.00086623]
[1756860217115,1.39508945,111690.0,111680.0,0.00295623]
[1756860217317,1.39508945,111690.0,111680.0,0.00086623]
[1756860226653,1.43500033,111690.0,111680.0,0.00086623]
[1756860227067,1.43496033,111690.0,111680.0,0.00086623]
[1756860228935,1.43743033,111690.0,111680.0,0.00086623]
[1756860229112,1.43496033,111690.0,111680.0,0.00086623]
[1756860231382,1.44411825,111690.0,111680.0,0.00086623]
[1756860233828,1.44411825,111690.0,111680.0,0.00380623]
[1756860234236,1.44411825,111690.0,111680.0,0.00589623]
[1756860234673,1.44411825,111690.0,111680.0,0.00380623]
[1756860234880,1.44411825,111690.0,111680.0,0.00589623]
[1756860235770,1.29259825,111690.0,111680.0,0.00589623]
[1756860235900,1.44411825,111690.0,111680.0,0.00589623]
[1756860236898,1.44411825,111690.0,111680.0,0.00086623]
[1756860237459,1.44411825,111690.0,111680.0,0.00589623]
[1756860239269,1.44411825,111690.0,111680.0,0.00380623]
[1756860239489,1.43549027,111690.0,111680.0,0.00380623]
[1756860240284,1.44430488,111690.0,111680.0,0.00380623]
[1756860240525,1.44430488,111690.0,111680.0,0.00086623]
[1756860241307,1.44430488,111690.0,111680.0,0.00380623]
[1756860241507,1.44430488,111690.0,111680.0,0.00589623]
[1756860241711,1.44430488,111690.0,111680.0,0.00086623]
[1756860241921,1.81475963,111690.0,111680.0,0.00086623]
[1756860242149,1.93091544,111690.0,111680.0,0.00086623]
[1756860242327,1.93091544,111690.0,111680.0,1e-08]
[1756860242328,1.9548419,111690.0,111680.0,1e-08]
[1756860242583,1.97908172,111690.0,111680.0,1e-08]
[1756860242788,2.36690324,111690.0,111680.0,1e-08]
[1756860242995,2.01985731,111690.0,111680.0,1e-08]
[1756860243197,2.08865567,111690.0,111680.0,1e-08]
[1756860243338,2.07099832,111690.0,111680.0,1e-08]
[1756860244546,2.12099832,111690.0,111680.0,1e-08]
[1756860244737,3.22525611,111690.0,111680.0,1e-08]
[1756860246682,3.22524666,111690.0,111680.0,1e-08]
[1756860246860,3.22520666,111690.0,111680.0,1e-08]
[1756860248150,0.51908309,111680.0,111670.0,1e-08]
[1756860248333,3.05277239,111680.0,111670.0,1e-08]
[1756860248542,2.04331669,111680.0,111670.0,1e-08]
[1756860248754,2.07024608,111680.0,111670.0,1e-08]
[1756860249169,2.1442084,111680.0,111670.0,1e-08]
[1756860249392,2.09331669,111680.0,111670.0,1e-08]
[1756860249586,2.09531669,111680.0,111670.0,1e-08]
[1756860249788,2.13605516,111680.0,111670.0,1e-08]
[1756860250000,2.13705516,111680.0,111670.0,1e-08]
[1756860250202,2.12327901,111680.0,111670.0,1e-08]
[1756860250413,2.09931669,111680.0,111670.0,1e-08]
[1756860250623,2.09331669,111680.0,111670.0,1e-08]
[1756860250836,2.09731669,111680.0,111670.0,1e-08]
[1756860251037,2.10031669,111680.0,111670.0,1e-08]
[1756860252098,2.05031669,111680.0,111670.0,1e-08]
[1756860252287,2.10031669,111680.0,111670.0,1e-08]
[1756860253660,0.51914725,111640.0,111630.0,0.0004]
[1756860253872,0.51914725,111640.0,111630.0,0.00048372]
[1756860254079,0.51914725,111640.0,111630.0,0.00260372]
[1756860254286,1.56028504,111640.0,111630.0,0.00559372]
[1756860254905,1.71176504,111640.0,111630.0,0.00559372]
[1756860255929,1.71176504,111640.0,111630.0,0.01059372]
[1756860256103,1.71276504,111640.0,111630.0,0.01359372]
[1756860257585,1.75262924,111640.0,111630.0,0.01359372]
[1756860258545,1.60114924,111640.0,111630.0,0.01359372]
[1756860258764,1.75262924,111640.0,111630.0,0.01359372]
[1756860260600,2.90860184,111640.0,111630.0,0.00848372]
[1756860261435,2.75712184,111640.0,111630.0,0.00848372]
[1756860261689,2.90860184,111640.0,111630.0,0.00848372]
[1756860262254,1.86746405,111640.0,111630.0,0.01060372]
[1756860262517,1.86746405,111640.0,111630.0,0.01359372]
[1756860262719,1.86746405,111640.0,111630.0,0.00848372]
[1756860263265,2.90860184,111640.0,111630.0,0.00848372]
[1756860265082,3.00051783,111640.0,111630.0,0.00848372]
[1756860265283,3.00298783,111640.0,111630.0,0.00848372]
[1756860266191,3.00198783,111640.0,111630.0,0.00348372]
[1756860266475,2.91007184,111640.0,111630.0,0.00248372]
[1756860266937,2.91007184,111640.0,111630.0,0.00048372]
[1756860267151,2.91007184,111640.0,111630.0,0.00248372]
[1756860267487,2.75859184,111640.0,111630.0,0.00248372]
[1756860267697,2.90760184,111640.0,111630.0,0.00248372]
[1756860270069,2.99397155,111640.0,111630.0,0.00248372]
[1756860270281,2.84249155,111640.0,111630.0,0.00248372]
[1756860270466,2.99397155,111640.0,111630.0,0.00248372]
[1756860271434,3.02610394,111640.0,111630.0,1e-08]
[1756860272330,3.03238738,111640.0,111630.0,1e-08]
[1756860274588,3.0563497,111640.0,111630.0,1e-08]
[1756860276237,3.07311111,111640.0,111630.0,1e-08]
[1756860276446,3.1650271,111640.0,111630.0,1e-08]
[1756860276882,3.0135471,111640.0,111630.0,1e-08]
[1756860277104,3.1650271,111640.0,111630.0,1e-08]
[1756860277842,3.16503013,111640.0,111630.0,1e-08]
[1756860280364,3.19714237,111640.0,111630.0,1e-08]
[1756860282708,0.51917935,111620.0,111610.0,0.00299]
[1756860282916,1.80371313,111620.0,111610.0,0.00313031]
[1756860283072,2.15075906,111620.0,111610.0,0.00526031]
[1756860283475,1.80371313,111620.0,111610.0,0.00526031]
[1756860284112,1.80371313,111620.0,111610.0,0.00826031]
[1756860284554,1.80471313,111620.0,111610.0,0.01126031]
[1756860286360,1.82404305,111620.0,111610.0,0.01126031]
[1756860287312,1.82404597,111620.0,111610.0,0.01126031]
[1756860289183,2.26094597,111620.0,111610.0,0.01126031]
[1756860289390,2.26724199,111620.0,111610.0,0.01126031]
[1756860290227,2.70818391,111620.0,111610.0,0.00614031]
[1756860290643,2.61626792,111620.0,111610.0,0.01150031]
[1756860290861,1.0746242,111620.0,111610.0,0.01150031]
[1756860291112,2.26720199,111620.0,111610.0,0.01150031]
[1756860291344,2.26620199,111620.0,111610.0,0.00850031]
[1756860291767,2.26620199,111620.0,111610.0,0.00950031]
[1756860292199,2.26620199,111620.0,111610.0,0.00650031]
[1756860297165,2.26616199,111620.0,111610.0,0.00650031]
[1756860297340,2.25986597,111620.0,111610.0,0.00650031]
[1756860297768,2.10846597,111620.0,111610.0,0.00650031]
[1756860297946,2.25986597,111620.0,111610.0,0.00650031]
[1756860298104,2.26616926,111620.0,111610.0,0.00650031]
[1756860298311,2.25986597,111620.0,111610.0,0.00650031]
[1756860299450,1.91373778,111620.0,111610.0,0.00650031]
[1756860302641,1.91571778,111620.0,111610.0,0.00650031]
[1756860307183,1.89638494,111620.0,111610.0,0.00650031]
[1756860314741,1.89440494,111620.0,111610.0,0.00650031]
[1756860315851,1.89637494,111620.0,111610.0,0.00650031]
[1756860316055,1.74300494,111620.0,111610.0,0.00650031]
[1756860316261,1.56775896,111620.0,111610.0,0.00650031]
[1756860322236,1.56972896,111620.0,111610.0,0.00650031]
[1756860323110,1.91723376,111620.0,111610.0,0.00650031]
[1756860325778,1.91723376,111620.0,111610.0,0.00114031]
[1756860326201,1.91723376,111620.0,111610.0,0.00425031]
[1756860326637,1.91723376,111620.0,111610.0,0.00114031]
[1756860327090,1.91971376,111620.0,111610.0,0.00114031]
[1756860327309,1.91723376,111620.0,111610.0,0.00114031]
[1756860334666,1.91723376,111620.0,111610.0,0.00635031]
[1756860336973,1.91526376,111620.0,111610.0,0.00635031]
[1756860338776,1.91724376,111620.0,111610.0,0.00635031]
[1756860339973,1.91724376,111620.0,111610.0,0.00425031]
[1756860340351,1.91724376,111620.0,111610.0,0.00114031]
[1756860340925,1.91971376,111620.0,111610.0,0.00114031]
[1756860341708,1.91724376,111620.0,111610.0,0.00114031]
[1756860342656,1.93909593,111620.0,111610.0,0.00114031]
[1756860345192,1.93662593,111620.0,111610.0,0.00114031]
[1756860345395,1.93909593,111620.0,111610.0,0.00114031]
[1756860347741,0.54013423,111610.0,111600.0,0.0004]
[1756860347940,1.50006946,111610.0,111600.0,0.00052552]
[1756860348193,1.50204946,111610.0,111600.0,0.00052552]
[1756860348751,1.52749483,111610.0,111600.0,0.00352552]
[1756860349602,1.52749483,111610.0,111600.0,0.00452552]
[1756860350809,1.54998885,111610.0,111600.0,0.00452552]
[1756860351022,1.59099797,111610.0,111600.0,0.00452552]
[1756860351242,1.68291396,111610.0,111600.0,1e-08]
[1756860352559,1.59099797,111610.0,111600.0,1e-08]
[1756860352774,0.74482837,111610.0,111600.0,1e-08]
[1756860353032,1.52220894,111610.0,111600.0,1e-08]
[1756860356708,1.37104894,111610.0,111600.0,1e-08]
[1756860356944,1.52216894,111610.0,111600.0,1e-08]
[1756860357593,1.36906894,111610.0,111600.0,0.00516001]
[1756860357813,1.52018894,111610.0,111600.0,0.00516001]
[1756860358013,1.52216894,111610.0,111600.0,0.00516001]
[1756860358218,1.52216894,111610.0,111600.0,1e-08]
[1756860359074,1.52221894,111610.0,111600.0,0.00516001]
[1756860359597,1.52221894,111610.0,111600.0,1e-08]
[1756860361331,1.54909431,111610.0,111600.0,1e-08]
[1756860361549,1.89704206,111610.0,111600.0,1e-08]
[1756860361770,3.05440942,111610.0,111600.0,1e-08]
[1756860361978,3.07375623,111610.0,111600.0,1e-08]
[1756860362178,2.98184024,111610.0,111600.0,1e-08]
[1756860362618,2.98184024,111610.0,111590.0,1e-08]
[1756860362619,2.62957153,111600.0,111590.0,1e-08]
[1756860362825,2.89510154,111600.0,111590.0,1e-08]
[1756860363033,1.85417419,111600.0,111590.0,1e-08]
[1756860363255,1.85660419,111600.0,111590.0,1e-08]
[1756860364271,2.019459,111600.0,111590.0,1e-08]
[1756860364479,2.03880034,111600.0,111590.0,1e-08]
[1756860365761,0.51922752,111590.0,111580.0,1e-08]
[1756860365969,0.76222351,111590.0,111580.0,1e-08]
[1756860366195,0.83038699,111590.0,111580.0,1e-08]
[1756860366402,2.00744316,111590.0,111580.0,1e-08]
[1756860366611,2.3744322,111590.0,111580.0,1e-08]
[1756860367702,2.3744322,111590.0,111570.0,0.0004]
[1756860367703,1.90985339,111580.0,111570.0,0.0004]
[1756860367912,0.61115958,111580.0,111570.0,0.00347]
[1756860368128,1.80519693,111580.0,111570.0,0.00556]
[1756860368997,1.80519693,111580.0,111570.0,0.00656]
[1756860369870,1.80619693,111580.0,111570.0,0.00656]
[1756860370415,1.80822693,111580.0,111570.0,0.00656]
[1756860370668,1.80822693,111580.0,111570.0,0.00644]
[1756860371069,1.84570305,111580.0,111570.0,0.00644]
[1756860371496,1.84768305,111580.0,111570.0,0.00644]
[1756860372762,2.98255639,111580.0,111570.0,0.0014]
[1756860372967,2.8906404,111580.0,111570.0,0.0014]
[1756860373298,0.54019847,111570.0,111560.0,0.0035]
[1756860373501,1.82615181,111570.0,111560.0,0.00396798]
[1756860373675,1.82615181,111570.0,111560.0,0.00593798]
[1756860376134,1.82615181,111570.0,111560.0,0.00693798]
[1756860376313,1.82715181,111570.0,111560.0,0.00693798]
[1756860377392,1.67607181,111570.0,111560.0,0.00693798]
[1756860377687,1.82715181,111570.0,111560.0,0.00693798]
[1756860378530,1.82913181,111570.0,111560.0,0.00693798]
[1756860380005,1.82913181,111570.0,111560.0,0.00496798]
[1756860381061,1.82913181,111570.0,111560.0,0.00186798]
[1756860381461,1.82913181,111570.0,111560.0,0.00383798]
[1756860381683,1.82913181,111570.0,111560.0,0.00693798]
[1756860381884,1.47949936,111570.0,111560.0,0.00693798]
[1756860382337,1.32841936,111570.0,111560.0,0.00693798]
[1756860382518,1.47949936,111570.0,111560.0,0.00693798]
[1756860383725,1.48147936,111570.0,111560.0,0.00693798]
[1756860383948,1.82913181,111570.0,111560.0,0.00693798]
[1756860385248,1.82913181,111570.0,111560.0,0.00496798]
[1756860385387,1.82913181,111570.0,111560.0,0.00693798]
[1756860386497,0.63311446,111570.0,111560.0,0.00693798]
[1756860386707,1.82711181,111570.0,111560.0,0.00693798]
[1756860387142,1.82909181,111570.0,111560.0,0.00693798]
[1756860387357,1.82909181,111570.0,111560.0,0.00186798]
[1756860387786,1.83156181,111570.0,111560.0,0.00186798]
[1756860388230,1.82909181,111570.0,111560.0,0.00186798]
[1756860388461,1.67805181,111570.0,111560.0,0.00186798]
[1756860388676,1.82909181,111570.0,111560.0,0.00693798]
[1756860389794,1.82711181,111570.0,111560.0,0.00693798]
[1756860390034,0.20021454,111560.0,111550.0,0.0004]
[1756860390285,1.39565189,111560.0,111550.0,0.00358394]
[1756860390698,1.39763189,111560.0,111550.0,0.00358394]
[1756860390901,1.73763189,111560.0,111550.0,0.00358394]
[1756860391157,0.69269454,111560.0,111550.0,0.00555394]
[1756860391364,1.73561189,111560.0,111550.0,0.00555394]
[1756860391583,1.73561189,111560.0,111550.0,0.00655394]
[1756860391794,1.73661189,111560.0,111550.0,0.00655394]
[1756860392007,1.73661189,111560.0,111550.0,0.00755394]
[1756860392748,1.73693189,111560.0,111550.0,0.00755394]
[1756860392955,1.83082788,111560.0,111550.0,0.00755394]
[1756860394936,1.67806788,111560.0,111550.0,0.00755394]
[1756860395142,1.83078788,111560.0,111550.0,0.00755394]
[1756860398880,1.83070788,111560.0,111550.0,0.00755394]
[1756860403980,1.58417189,111560.0,111550.0,0.00755394]
[1756860406821,1.73653189,111560.0,111550.0,0.00755394]
[1756860410165,1.58417189,111560.0,111550.0,0.00755394]
[1756860415924,0.52027572,111560.0,111550.0,0.00755394]
[1756860416144,0.87558062,111560.0,111550.0,0.03292508]
[1756860416381,0.87558062,111560.0,111550.0,0.51945286]
[1756860416382,0.001,111560.0,111550.0,0.51945286]
[1756860416590,0.34865245,111560.0,111550.0,0.51721172]
[1756860416797,0.001,111560.0,111550.0,0.51721172]
[1756860417405,0.34865245,111560.0,111550.0,0.51721172]
[1756860418183,0.52792817,111560.0,111550.0,0.51721172]
[1756860418551,0.52792817,111560.0,111550.0,0.36509172]
[1756860418769,0.52792817,111560.0,111550.0,0.51717172]
[1756860419491,0.34865245,111560.0,111550.0,0.51717172]
[1756860420160,0.87558062,111560.0,111550.0,0.18579993]
[1756860420779,0.52792817,111560.0,111550.0,0.36509172]
[1756860421170,0.001,111560.0,111550.0,0.36509172]
[1756860422599,0.34859759,111560.0,111550.0,0.36509172]
[1756860423591,0.001,111560.0,111550.0,0.36509172]
[1756860423771,0.34859759,111560.0,111550.0,0.36509172]
[1756860425085,0.001,111560.0,111550.0,0.36509172]
[1756860425872,0.001,111560.0,111550.0,0.37410824]
[1756860426569,0.001,111560.0,111550.0,0.57158824]
[1756860426771,0.001,111560.0,111550.0,0.91918583]
[1756860427404,0.001,111560.0,111550.0,0.72354824]
[1756860427610,0.001,111560.0,111550.0,0.71453172]
[1756860429517,0.001,111560.0,111550.0,0.72334109]
[1756860429895,0.001,111560.0,111550.0,0.57138109]
[1756860430121,0.001,111560.0,111550.0,0.72330109]
[1756860431763,0.001,111560.0,111550.0,0.76397361]
[1756860433275,0.001,111560.0,111550.0,0.56257172]
[1756860433481,0.34859759,111560.0,111550.0,0.69124172]
[1756860433688,0.52985331,111560.0,111550.0,0.53944172]
[1756860433899,0.52985331,111560.0,111550.0,0.50687993]
[1756860434139,0.52985331,111560.0,111550.0,0.15759993]
[1756860434351,0.53232331,111560.0,111550.0,0.30939993]
[1756860434565,0.52985331,111560.0,111550.0,0.30939993]
[1756860435179,0.001,111560.0,111550.0,0.49382172]
[1756860435655,0.001,111560.0,111550.0,0.51816172]
[1756860436082,0.001,111560.0,111550.0,0.36636172]
[1756860436287,0.001,111560.0,111550.0,0.51816172]
[1756860436695,0.34859759,111560.0,111550.0,0.36636172]
[1756860436896,0.34859759,111560.0,111550.0,0.49382172]
[1756860438558,0.001,111560.0,111550.0,0.49382172]
[1756860439138,0.001,111560.0,111550.0,0.51816172]
[1756860440686,0.34859759,111560.0,111550.0,0.48869172]
[1756860441013,0.35057759,111560.0,111550.0,0.34202172]
[1756860441212,0.35057759,111560.0,111550.0,0.49386172]
[1756860441418,0.001,111560.0,111550.0,0.49386172]
[1756860441850,0.001,111560.0,111550.0,0.51820172]
[1756860447094,0.001,111560.0,111550.0,0.36636172]
[1756860447302,0.34859759,111560.0,111550.0,0.49370172]
[1756860447692,0.35057759,111560.0,111550.0,0.48857172]
[1756860447844,0.35057759,111560.0,111550.0,0.33689172]
[1756860448070,0.35057759,111560.0,111550.0,0.48861172]
[1756860448374,0.35057759,111560.0,111550.0,0.49075172]
[1756860448548,0.35057759,111560.0,111550.0,0.49374172]
[1756860448743,0.35057759,111560.0,111550.0,0.48861172]
[1756860449404,0.34859759,111560.0,111550.0,0.49374172]
[1756860449979,0.001,111560.0,111550.0,0.49374172]
[1756860450210,0.34859759,111560.0,111550.0,0.49374172]
[1756860450662,0.001,111560.0,111550.0,0.49374172]
[1756860452911,0.001,111560.0,111550.0,0.86567931]
[1756860453323,0.001,111560.0,111550.0,0.85808172]
[1756860453530,0.001,111560.0,111550.0,1.20567931]
[1756860453942,0.001,111560.0,111550.0,0.85808172]
[1756860456803,0.001,111560.0,111550.0,0.89816385]
[1756860457158,0.001,111560.0,111550.0,0.97788312]
[1756860458156,0.001,111560.0,111550.0,0.82616312]
[1756860458356,0.001,111560.0,111550.0,0.97788312]
[1756860460371,0.001,111560.0,111550.0,1.17532312]
[1756860461099,0.001,111560.0,111550.0,1.54385953]
[1756860461301,0.001,111560.0,111550.0,1.59385953]
[1756860461549,7.267e-05,111560.0,111550.0,1.62079706]
[1756860461927,7.267e-05,111560.0,111550.0,1.59107779]
[1756860462130,0.07354631,111590.0,111580.0,0.17924359]
[1756860462347,0.07354631,111590.0,111580.0,0.49330012]
[1756860462600,0.07354631,111590.0,111580.0,0.49105958]
[1756860462840,0.4211439,111610.0,111600.0,0.17921146]
[1756860463054,0.4231239,111610.0,111600.0,0.42280745]
[1756860463260,0.07552631,111610.0,111600.0,0.42280745]
[1756860463463,0.4231239,111610.0,111600.0,0.42280745]
[1756860463866,0.34957759,111610.0,111600.0,0.42280745]
[1756860464071,0.35004412,111610.0,111600.0,0.42280745]
[1756860464275,0.35004412,111610.0,111600.0,0.27212745]
[1756860464494,0.53170953,111610.0,111600.0,0.24455599]
[1756860464875,0.53170953,111610.0,111600.0,0.24555599]
[1756860465684,0.53170953,111610.0,111600.0,0.42476745]
[1756860465902,0.52923953,111610.0,111600.0,0.42476745]
[1756860466452,0.53170953,111610.0,111600.0,0.24555599]
[1756860466845,0.35004412,111610.0,111600.0,0.42476745]
[1756860467810,0.35004412,111610.0,111600.0,0.42982745]
[1756860468035,0.18164194,111610.0,111600.0,0.42476745]
[1756860468245,0.52923953,111610.0,111600.0,0.42476745]
[1756860468450,0.35004412,111610.0,111600.0,0.42476745]
[1756860468977,0.00046653,111610.0,111600.0,0.42982745]
[1756860469184,0.34806412,111610.0,111600.0,0.42982745]
[1756860470021,0.00046653,111610.0,111600.0,0.62722745]
[1756860470448,0.35004412,111610.0,111600.0,0.62216745]
[1756860470675,0.35004412,111610.0,111600.0,0.62722745]
[1756860471097,0.35004412,111610.0,111600.0,0.47558745]
[1756860471315,0.35004412,111610.0,111600.0,0.62726745]
[1756860471973,0.35004412,111610.0,111600.0,0.47052745]
[1756860472181,0.52923953,111610.0,111600.0,0.62220745]
[1756860473460,0.52923953,111610.0,111600.0,0.62216745]
[1756860473878,0.53170953,111610.0,111600.0,0.62216745]
[1756860474076,0.35004412,111610.0,111600.0,0.62216745]
[1756860475314,0.00244653,111610.0,111600.0,0.62216745]